fUSD/lending_fUSD_20250504
["ID","MTS","AMOUNT","RATE_DAILY","PERIOD"]
[359840948,1746366646151,-181.38753837,0.00019782,2]
[359840950,1746366646160,-889.1740825,0.00019799,2]
[359840952,1746366646170,-181.38753833,0.00019802,2]
[359840953,1746366646180,-1948.91872391,0.00019805,2]
[359840955,1746366646189,-151.0,0.00019808,2]
[359840957,1746366646199,-151.0,0.00019808,2]
[359840960,1746366646209,-175.760332,0.00019808,2]
[359840962,1746366646218,-175.760332,0.00019808,2]
[359840964,1746366646228,-151.0,0.00019808,2]
[359840965,1746366646238,-151.0,0.00019808,2]
[359840967,1746366646247,-151.0,0.00019808,2]
[359840969,1746366646257,-450.0,0.00019808,2]
[359840971,1746366646266,-461.44228444,0.00019808,2]
[359840974,1746366646276,-450.0,0.00019808,2]
[359840975,1746366646285,-450.0,0.00019808,2]
[359840977,1746366646295,-526.48,0.00019808,2]
[359840979,1746366646304,-450.0,0.00019808,2]
[359840981,1746366646314,-483.22,0.00019808,2]
[359840983,1746366646324,-450.0,0.00019808,2]
[359840985,1746366646333,-450.0,0.00019808,2]
[359840987,1746366646343,-450.0,0.00019808,2]
[359840989,1746366646352,-482.0,0.00019808,2]
[359840991,1746366646362,-384.06,0.00019808,2]
[359840993,1746366646371,-450.0,0.00019808,2]
[359840995,1746366646381,-368.88,0.00019808,2]
[359840997,1746366646390,-528.18,0.00019808,2]
[359840999,1746366646399,-298.79,0.00019808,2]
[359841001,1746366646409,-450.0,0.00019808,2]
[359841003,1746366646419,-450.0,0.00019808,2]
[359841005,1746366646429,-338.35,0.00019808,2]
[359841008,1746366646438,-274.9,0.00019808,2]
[359841010,1746366646449,-837.11,0.00019808,2]
[359841012,1746366646458,-16859.5,0.00019808,2]
[359841014,1746366646468,-967.44,0.00019808,2]
[359841016,1746366646478,-450.0,0.00019808,2]
[359841017,1746366646488,-3070.27,0.00019808,2]
[359841020,1746366646497,-781.8,0.00019808,2]
[359841021,1746366646506,-450.0,0.00019808,2]
[359841023,1746366646515,-450.0,0.00019808,2]
[359841025,1746366646525,-2760.02,0.00019808,2]
[359841027,1746366646535,-450.0,0.00019808,2]
[359841029,1746366646545,-450.0,0.00019808,2]
[359841031,1746366646554,-244.38,0.00019808,2]
[359841033,1746366646563,-450.0,0.00019808,2]
[359841035,1746366646573,-450.0,0.00019808,2]
[359841037,1746366646582,-450.0,0.00019808,2]
[359841039,1746366646592,-1313.76,0.00019808,2]
[359841041,1746366646602,-451.31,0.00019808,2]
[359841043,1746366646612,-450.0,0.00019808,2]
[359841045,1746366646621,-450.0,0.00019808,2]
[359841047,1746366646631,-488.82,0.00019808,2]
[359841049,1746366646640,-1282.15,0.00019808,2]
[359841051,1746366646650,-30616.38,0.00019808,2]
[359841052,1746366646659,-1726.27,0.00019808,2]
[359841054,1746366646669,-450.0,0.00019808,2]
[359841056,1746366646678,-450.0,0.00019808,2]
[359841058,1746366646688,-532.29,0.00019808,2]
[359841060,1746366646698,-450.0,0.00019808,2]
[359841062,1746366646707,-512.41,0.00019808,2]
[359841064,1746366646717,-245.05,0.00019808,2]
[359841066,1746366646726,-567.3,0.00019808,2]
[359841068,1746366646736,-450.0,0.00019808,2]
[359841070,1746366646746,-372.68089543,0.00019808,2]
[359841072,1746366646756,-450.0,0.00019808,2]
[359841074,1746366646766,-1478.08,0.00019808,2]
[359841076,1746366646776,-304.07,0.00019808,2]
[359841078,1746366646785,-450.0,0.00019808,2]
[359841080,1746366646796,-609.91,0.00019808,2]
[359841082,1746366646805,-450.0,0.00019808,2]
[359841084,1746366646815,-450.0,0.00019808,2]
[359841086,1746366646824,-1209.53,0.00019808,2]
[359841088,1746366646833,-450.0,0.00019808,2]
[359841094,1746366646881,-275.37,0.00019808,2]
[359841096,1746366646890,-450.0,0.00019808,2]
[359841098,1746366646899,-554.45,0.00019808,2]
[359841100,1746366646909,-450.0,0.00019808,2]
[359841101,1746366646917,-1267.04,0.00019808,2]
[359841103,1746366646926,-450.0,0.00019808,2]
[359841105,1746366646936,-450.0,0.00019808,2]
[359841107,1746366646945,-450.0,0.00019808,2]
[359841109,1746366646954,-450.0,0.00019808,2]
[359841111,1746366646963,-450.0,0.00019808,2]
[359841113,1746366646972,-6253.08103099,0.00019809,2]
[359841115,1746366646981,-181.38753833,0.00019821,2]
[359841117,1746366646991,-331.78,0.00019834,2]
[359841119,1746366647000,-500.0,0.00019834,2]
[359841121,1746366647010,-500.0,0.00019834,2]
[359841123,1746366647020,-245.41902,0.00019835,2]
[359841125,1746366647029,-175.760332,0.00019835,2]
[359841127,1746366647039,-175.760332,0.00019835,2]
[359841129,1746366647050,-151.0,0.00019835,2]
[359841131,1746366647059,-151.0,0.00019835,2]
[359841133,1746366647069,-151.0,0.00019835,2]
[359841135,1746366647078,-450.0,0.00019835,2]
[359841137,1746366647088,-450.0,0.00019835,2]
[359841139,1746366647098,-450.0,0.00019835,2]
[359841141,1746366647107,-526.48,0.00019835,2]
[359841143,1746366647117,-450.0,0.00019835,2]
[359841145,1746366647127,-483.22,0.00019835,2]
[359841147,1746366647136,-450.0,0.00019835,2]
[359841149,1746366647145,-450.0,0.00019835,2]
[359841151,1746366647155,-450.0,0.00019835,2]
[359841152,1746366647163,-482.0,0.00019835,2]
[359841153,1746366647173,-456.59,0.00019835,2]
[359841154,1746366647182,-151.0,0.00019835,2]
[359841155,1746366647191,-151.0,0.00019835,2]
[359841156,1746366647200,-151.0,0.00019835,2]
[359841157,1746366647209,-151.0,0.00019835,2]
[359841158,1746366647217,-151.0,0.00019835,2]
[359841159,1746366647227,-151.0,0.00019835,2]
[359841160,1746366647236,-273.383764,0.00019835,2]
[359841161,1746366647245,-450.0,0.00019835,2]
[359841162,1746366647254,-151.0,0.00019835,2]
[359841163,1746366647263,-273.383764,0.00019835,2]
[359841164,1746366647271,-168.587069,0.00019835,2]
[359841165,1746366647280,-151.0,0.00019835,2]
[359841167,1746366647290,-151.0,0.00019835,2]
[359841169,1746366647299,-151.0,0.00019835,2]
[359841171,1746366647308,-450.0,0.00019835,2]
[359841173,1746366647317,-151.0,0.00019835,2]
[359841175,1746366647326,-151.0,0.00019835,2]
[359841177,1746366647335,-258.872243,0.00019835,2]
[359841179,1746366647344,-246.518105,0.00019835,2]
[359841181,1746366647354,-151.0,0.00019835,2]
[359841182,1746366647363,-151.0,0.00019835,2]
[359841184,1746366647372,-837.11,0.00019835,2]
[359841186,1746366647382,-160.179535,0.00019835,2]
[359841188,1746366647391,-160.179535,0.00019835,2]
[359841190,1746366647400,-16859.5,0.00019835,2]
[359841192,1746366647409,-151.0,0.00019835,2]
[359841194,1746366647419,-233.306102,0.00019835,2]
[359841196,1746366647428,-151.0,0.00019835,2]
[359841198,1746366647438,-233.306102,0.00019835,2]
[359841200,1746366647448,-151.0,0.00019835,2]
[359841202,1746366647457,-967.44,0.00019835,2]
[359841204,1746366647466,-450.0,0.00019835,2]
[359841206,1746366647475,-3070.27,0.00019835,2]
[359841208,1746366647485,-151.0,0.00019835,2]
[359841210,1746366647494,-781.8,0.00019835,2]
[359841212,1746366647504,-450.0,0.00019835,2]
[359841214,1746366647513,-450.0,0.00019835,2]
[359841216,1746366647523,-151.0,0.00019835,2]
[359841218,1746366647532,-2760.02,0.00019835,2]
[359841220,1746366647542,-450.0,0.00019835,2]
[359841222,1746366647552,-151.0,0.00019835,2]
[359841224,1746366647561,-450.0,0.00019835,2]
[359841226,1746366647570,-154.836575,0.00019835,2]
[359841228,1746366647580,-450.0,0.00019835,2]
[359841230,1746366647589,-450.0,0.00019835,2]
[359841232,1746366647599,-151.0,0.00019835,2]
[359841233,1746366647608,-1313.76,0.00019835,2]
[359841235,1746366647617,-451.31,0.00019835,2]
[359841237,1746366647627,-151.0,0.00019835,2]
[359841239,1746366647636,-151.0,0.00019835,2]
[359841241,1746366647645,-151.0,0.00019835,2]
[359841243,1746366647655,-151.0,0.00019835,2]
[359841245,1746366647664,-151.0,0.00019835,2]
[359841247,1746366647673,-263.44,0.00019835,2]
[359841249,1746366647682,-151.0,0.00019835,2]
[359841251,1746366647691,-151.0,0.00019835,2]
[359841253,1746366647700,-450.0,0.00019835,2]
[359841255,1746366647710,-151.0,0.00019835,2]
[359841257,1746366647719,-151.0,0.00019835,2]
[359841259,1746366647729,-158.436892,0.00019835,2]
[359841261,1746366647739,-151.0,0.00019835,2]
[359841263,1746366647750,-1282.15,0.00019835,2]
[359841265,1746366647759,-30616.38,0.00019835,2]
[359841267,1746366647769,-1726.27,0.00019835,2]
[359841269,1746366647778,-450.0,0.00019835,2]
[359841271,1746366647787,-486.12,0.00019835,2]
[359841273,1746366647797,-532.29,0.00019835,2]
[359841275,1746366647806,-595.11455112,0.00019835,2]
[359841277,1746366647816,-206.59554,0.00019835,2]
[359841280,1746366647826,-206.59554,0.00019835,2]
[359841282,1746366647836,-151.0,0.00019835,2]
[359841284,1746366647846,-512.41,0.00019835,2]
[359841286,1746366647855,-151.0,0.00019835,2]
[359841288,1746366647865,-169.622999,0.00019835,2]
[359841290,1746366647874,-567.3,0.00019835,2]
[359841292,1746366647883,-151.0,0.00019835,2]
[359841294,1746366647893,-169.622999,0.00019835,2]
[359841296,1746366647902,-151.0,0.00019835,2]
[359841298,1746366647912,-477.27,0.00019835,2]
[359841300,1746366647921,-413.86,0.00019835,2]
[359841302,1746366647931,-1478.08,0.00019835,2]
[359841304,1746366647941,-502.75,0.00019835,2]
[359841306,1746366647951,-609.91,0.00019835,2]
[359841308,1746366647961,-450.0,0.00019835,2]
[359841310,1746366647970,-450.0,0.00019835,2]
[359841312,1746366647981,-1209.53,0.00019835,2]
[359841314,1746366647990,-450.0,0.00019835,2]
[359841316,1746366647999,-450.0,0.00019835,2]
[359841318,1746366648009,-554.45,0.00019835,2]
[359841319,1746366648018,-450.0,0.00019835,2]
[359841321,1746366648027,-151.0,0.00019835,2]
[359841324,1746366648036,-311.905135,0.00019835,2]
[359841325,1746366648049,-1267.04,0.00019835,2]
[359841327,1746366648058,-450.0,0.00019835,2]
[359841329,1746366648067,-311.905135,0.00019835,2]
[359841331,1746366648076,-450.0,0.00019835,2]
[359841333,1746366648087,-450.0,0.00019835,2]
[359841335,1746366648096,-450.0,0.00019835,2]
[359841337,1746366648105,-450.0,0.00019835,2]
[359841339,1746366648115,-1948.91872391,0.00019836,2]
[359841341,1746366648125,-151.0,0.00019839,2]
[359841343,1746366648134,-151.0,0.00019839,2]
[359841345,1746366648144,-6253.08103099,0.00019839,2]
[359841347,1746366648154,-181.38753833,0.00019841,2]
[359841349,1746366648164,-168.606648,0.00019845,2]
[359841351,1746366648174,-151.0,0.00019845,2]
[359841353,1746366648183,-151.0,0.00019845,2]
[359841355,1746366648192,-151.0,0.00019845,2]
[359841357,1746366648202,-151.0,0.00019845,2]
[359841359,1746366648211,-239.78686,0.00019845,2]
[359841361,1746366648220,-3849.44,0.00019853,2]
[359841363,1746366648229,-161.756,0.00019856,2]
[359841365,1746366648238,-181.38753833,0.00019861,2]
[359841367,1746366648247,-500.0,0.00019862,2]
[359841369,1746366648257,-504.23067165,0.00019863,2]
[359841371,1746366648266,-450.0,0.00019863,2]
[359841373,1746366648275,-450.0,0.00019863,2]
[359841375,1746366648285,-526.48,0.00019863,2]
[359841377,1746366648295,-450.0,0.00019863,2]
[359841379,1746366648305,-483.22,0.00019863,2]
[359841381,1746366648314,-450.0,0.00019863,2]
[359841383,1746366648323,-450.0,0.00019863,2]
[359841385,1746366648333,-450.0,0.00019863,2]
[359841387,1746366648343,-482.0,0.00019863,2]
[359841389,1746366648352,-595.33,0.00019863,2]
[359841391,1746366648362,-450.0,0.00019863,2]
[359841393,1746366648372,-60.96142628,0.00019863,2]
[359841419,1746366648602,-478.515,0.00019863,2]
[359841503,1746366649435,-500.0,0.00019706,2]
[359841505,1746366649445,-500.0,0.00019706,2]
[359841507,1746366649455,-500.0,0.00019706,2]
[359841509,1746366649463,-231.1997,0.00019706,2]
[359841512,1746366649475,-268.8003,0.00019706,2]
[359841514,1746366649485,-500.0,0.00019706,2]
[359841516,1746366649495,-500.0,0.00019706,2]
[359841518,1746366649504,-500.0,0.00019706,2]
[359841520,1746366649513,-473.39340979,0.00019726,2]
[359841522,1746366649523,-450.0,0.00019726,2]
[359841524,1746366649533,-450.0,0.00019726,2]
[359841526,1746366649543,-450.0,0.00019726,2]
[359841528,1746366649553,-450.0,0.00019753,2]
[359841530,1746366649563,-450.0,0.00019753,2]
[359841532,1746366649572,-381.96,0.00019753,2]
[359841534,1746366649582,-450.0,0.00019753,2]
[359841536,1746366649592,-450.0,0.0001978,2]
[359841538,1746366649602,-450.0,0.0001978,2]
[359841540,1746366649611,-450.0,0.0001978,2]
[359841542,1746366649621,-520.43,0.00019808,2]
[359841544,1746366649631,-450.0,0.00019808,2]
[359841546,1746366649641,-450.0,0.00019808,2]
[359841548,1746366649650,-450.0,0.00019835,2]
[359841550,1746366649660,-450.0,0.00019835,2]
[359841552,1746366649671,-297.63357372,0.00019863,2]
[359841554,1746366649680,-16859.5,0.00019863,2]
[359841556,1746366649690,-967.44,0.00019863,2]
[359841558,1746366649699,-450.0,0.00019863,2]
[359841560,1746366649709,-3070.27,0.00019863,2]
[359841562,1746366649718,-781.8,0.00019863,2]
[359841564,1746366649728,-450.0,0.00019863,2]
[359841566,1746366649738,-450.0,0.00019863,2]
[359841568,1746366649748,-2760.02,0.00019863,2]
[359841569,1746366649758,-450.0,0.00019863,2]
[359841572,1746366649767,-450.0,0.00019863,2]
[359841574,1746366649777,-450.0,0.00019863,2]
[359841575,1746366649786,-450.0,0.00019863,2]
[359841576,1746366649796,-1313.76,0.00019863,2]
[359841577,1746366649806,-451.31,0.00019863,2]
[359841578,1746366649815,-450.0,0.00019863,2]
[359841579,1746366649826,-1282.15,0.00019863,2]
[359841580,1746366649836,-4447.79320509,0.00019863,2]
[359841588,1746366649959,-500.0,0.00019608,2]
[359841590,1746366649969,-450.0,0.00019726,2]
[359841592,1746366649979,-477.46,0.00019726,2]
[359841594,1746366649989,-484.54,0.00019863,2]
[359841596,1746366650001,-468.756,0.00019863,2]
[359841599,1746366650022,-554.37006051,0.00019753,2]
[359841601,1746366650032,-25215.29079491,0.00019863,2]
[359841603,1746366650043,-1726.27,0.00019863,2]
[359841605,1746366650053,-450.0,0.00019863,2]
[359841607,1746366650063,-532.29,0.00019863,2]
[359841609,1746366650073,-512.41,0.00019863,2]
[359841611,1746366650083,-567.3,0.00019863,2]
[359841613,1746366650092,-1478.08,0.00019863,2]
[359841615,1746366650102,-609.91,0.00019863,2]
[359841617,1746366650112,-450.0,0.00019863,2]
[359841619,1746366650123,-450.0,0.00019863,2]
[359841621,1746366650134,-1209.53,0.00019863,2]
[359841623,1746366650144,-178.01,0.00019863,2]
[359841625,1746366650154,-174.44937582,0.00019863,2]
[359841627,1746366650164,-450.0,0.00019863,2]
[359841629,1746366650174,-554.45,0.00019863,2]
[359841631,1746366650184,-1267.04,0.00019863,2]
[359841633,1746366650193,-450.0,0.00019863,2]
[359841635,1746366650204,-450.0,0.00019863,2]
[359841637,1746366650214,-450.0,0.00019863,2]
[359841639,1746366650224,-450.0,0.00019863,2]
[359841641,1746366650234,-450.0,0.00019863,2]
[359841643,1746366650244,-450.0,0.00019863,2]
[359841645,1746366650254,-450.0,0.00019863,2]
[359841647,1746366650264,-500.0,0.00019863,2]
[359841649,1746366650274,-399.95728353,0.00019864,2]
[359841652,1746366650284,-388.53,0.00019867,2]
[359841654,1746366650294,-500.0,0.00019867,2]
[359841656,1746366650305,-500.0,0.00019867,2]
[359841658,1746366650315,-1120.0,0.00019868,2]
[359841660,1746366650324,-151.0,0.00019868,2]
[359841662,1746366650334,-505.845583,0.00019868,2]
[359841664,1746366650344,-505.845583,0.00019868,2]
[359841666,1746366650354,-151.0,0.00019868,2]
[359841668,1746366650364,-151.0,0.00019868,2]
[359841670,1746366650374,-151.0,0.00019868,2]
[359841672,1746366650384,-245.41902,0.00019868,2]
[359841673,1746366650393,-245.41902,0.00019868,2]
[359841676,1746366650404,-151.0,0.00019868,2]
[359841678,1746366650413,-175.760332,0.00019868,2]
[359841680,1746366650424,-175.760332,0.00019868,2]
[359841681,1746366650435,-151.0,0.00019868,2]
[359841684,1746366650444,-151.0,0.00019868,2]
[359841686,1746366650454,-151.0,0.00019868,2]
[359841688,1746366650463,-151.0,0.00019868,2]
[359841690,1746366650474,-151.0,0.00019868,2]
[359841692,1746366650484,-151.0,0.00019868,2]
[359841694,1746366650493,-151.0,0.00019868,2]
[359841696,1746366650503,-151.0,0.00019868,2]
[359841698,1746366650512,-260.931689,0.00019868,2]
[359841700,1746366650522,-151.0,0.00019868,2]
[359841702,1746366650531,-151.0,0.00019868,2]
[359841704,1746366650541,-151.0,0.00019868,2]
[359841706,1746366650550,-295.974,0.00019868,2]
[359841708,1746366650560,-295.974,0.00019868,2]
[359841710,1746366650569,-214.614548,0.00019868,2]
[359841712,1746366650580,-151.0,0.00019868,2]
[359841714,1746366650590,-168.470085,0.00019868,2]
[359841716,1746366650599,-151.0,0.00019868,2]
[359841718,1746366650609,-151.0,0.00019868,2]
[359841720,1746366650619,-151.0,0.00019868,2]
[359841722,1746366650628,-151.0,0.00019868,2]
[359841724,1746366650637,-151.0,0.00019868,2]
[359841726,1746366650647,-151.0,0.00019868,2]
[359841728,1746366650657,-293.707899,0.00019868,2]
[359841730,1746366650668,-151.0,0.00019868,2]
[359841732,1746366650678,-293.707899,0.00019868,2]
[359841734,1746366650687,-151.0,0.00019868,2]
[359841735,1746366650697,-151.0,0.00019868,2]
[359841736,1746366650706,-152.282913,0.00019868,2]
[359841737,1746366650715,-292.695262,0.00019868,2]
[359841738,1746366650725,-292.695262,0.00019868,2]
[359841739,1746366650734,-151.0,0.00019868,2]
[359841740,1746366650744,-151.0,0.00019868,2]
[359841741,1746366650754,-151.0,0.00019868,2]
[359841743,1746366650763,-151.0,0.00019868,2]
[359841745,1746366650772,-151.0,0.00019868,2]
[359841746,1746366650781,-154.049575,0.00019868,2]
[359841747,1746366650791,-5929.4276559,0.00019868,2]
[359841748,1746366650800,-154.049575,0.00019868,2]
[359841750,1746366650810,-151.0,0.00019868,2]
[359841752,1746366650819,-151.0,0.00019868,2]
[359841754,1746366650829,-151.0,0.00019868,2]
[359841756,1746366650839,-151.0,0.00019868,2]
[359841758,1746366650849,-151.0,0.00019868,2]
[359841760,1746366650859,-151.0,0.00019868,2]
[359841762,1746366650869,-151.0,0.00019868,2]
[359841763,1746366650879,-151.0,0.00019868,2]
[359841764,1746366650888,-151.0,0.00019868,2]
[359841765,1746366650898,-273.383764,0.00019868,2]
[359841766,1746366650907,-151.0,0.00019868,2]
[359841767,1746366650917,-273.383764,0.00019868,2]
[359841768,1746366650927,-151.0,0.00019868,2]
[359841769,1746366650937,-151.0,0.00019868,2]
[359841770,1746366650947,-151.0,0.00019868,2]
[359841771,1746366650957,-151.0,0.00019868,2]
[359841772,1746366650967,-151.0,0.00019868,2]
[359841773,1746366650977,-151.0,0.00019868,2]
[359841774,1746366650987,-160.179535,0.00019868,2]
[359841775,1746366650996,-151.0,0.00019868,2]
[359841776,1746366651006,-160.179535,0.00019868,2]
[359841784,1746366651183,-151.0,0.00019868,2]
[359841785,1746366651193,-233.306102,0.00019868,2]
[359841786,1746366651202,-151.0,0.00019868,2]
[359841787,1746366651212,-233.306102,0.00019868,2]
[359841788,1746366651221,-151.0,0.00019868,2]
[359841789,1746366651231,-151.0,0.00019868,2]
[359841790,1746366651241,-151.0,0.00019868,2]
[359841791,1746366651251,-151.0,0.00019868,2]
[359841792,1746366651260,-155.6,0.00019868,2]
[359841793,1746366651270,-151.0,0.00019868,2]
[359841794,1746366651280,-151.0,0.00019868,2]
[359841795,1746366651290,-151.0,0.00019868,2]
[359841796,1746366651299,-151.0,0.00019868,2]
[359841797,1746366651309,-151.0,0.00019868,2]
[359841798,1746366651318,-165.151918,0.00019868,2]
[359841799,1746366651328,-177.130422,0.00019868,2]
[359841800,1746366651338,-151.0,0.00019868,2]
[359841801,1746366651348,-151.0,0.00019868,2]
[359841802,1746366651358,-206.59554,0.00019868,2]
[359841803,1746366651367,-206.59554,0.00019868,2]
[359841804,1746366651377,-151.0,0.00019868,2]
[359841805,1746366651387,-242.69434,0.00019868,2]
[359841806,1746366651396,-169.622999,0.00019868,2]
[359841807,1746366651406,-169.622999,0.00019868,2]
[359841808,1746366651417,-79224.47281063,0.00019868,2]
[359841809,1746366682501,1142.8,0.00019178,2]
[359841810,1746366690260,972.47096965,0.00016963,2]
[359841811,1746366690283,617.38903035,0.00016963,2]
[359841812,1746366690456,1589.86,0.00019227,2]
[359841813,1746366747077,160.0,0.0003,32]
[359841814,1746366770772,187.63,0.00018847,2]
[359841815,1746366896885,169.58,0.00018784,2]
[359841816,1746366897302,169.58,0.000188,2]
[359841817,1746366897517,169.58,0.00018815,2]
[359841818,1746366897714,169.58,0.00018831,2]
[359841819,1746366897926,169.58,0.00018847,2]
[359841820,1746366898146,169.58,0.00018862,2]
[359841821,1746366898369,169.58,0.00018878,2]
[359841822,1746366905294,418.06096965,0.00019,2]
[359841823,1746366905316,3814.65903035,0.00019,2]
[359841825,1746366907551,185.34096965,0.00019,2]
[359841826,1746366907581,4000.0,0.00019,2]
[359841827,1746366907616,47.37903035,0.00019,2]
[359841828,1746366909244,3952.62096965,0.00019,2]
[359841829,1746366909266,280.09903035,0.00019,2]
[359841830,1746366939495,1000.0,0.00018755,2]
[359841831,1746367146584,500.0,0.00027945,30]
[359841832,1746367146832,500.0,0.00029315,35]
[359841833,1746367148246,1077.491075,7.945e-05,2]
[359841834,1746367166654,500.0,0.00027945,30]
[359841835,1746367166876,500.0,0.00029315,30]
[359841836,1746367168649,202.2,0.00018719,2]
[359841837,1746367226844,151.671839,0.0003,31]
[359841838,1746367244180,166.31,0.00019311,2]
[359841839,1746367246643,-156.74979693,0.00019525,2]
[359841840,1746367405415,250.0,0.00017,2]
[359841841,1746367406490,300.0,0.00019,2]
[359841842,1746367417010,723.89989465,0.00018692,2]
[359841843,1746367417032,4000.0,0.00018692,2]
[359841844,1746367417053,4000.0,0.00018692,2]
[359841845,1746367417075,4000.0,0.00018692,2]
[359841846,1746367417096,4000.0,0.00018692,2]
[359841847,1746367417117,4000.0,0.00018692,2]
[359841848,1746367417139,3176.10010535,0.00018692,2]
[359841849,1746367420193,204.431196,0.00019426,2]
[359841850,1746367460484,167.6721655,8.3e-07,2]
[359841851,1746367477849,158.98,0.00018698,2]
[359841852,1746367526029,150.0,1e-08,2]
[359841855,1746367576252,142.81653315,0.00019461,2]
[359841856,1746367576274,494.58281775,0.00019461,2]
[359841858,1746367622366,-166.58,0.00019524,2]
[359841859,1746367623094,-166.58,0.00019524,2]
[359841868,1746367651674,-293.71801786,0.00019524,2]
[359841876,1746367655512,-163.4923076,0.00019524,2]
[359841877,1746367663257,-163.86,0.00019524,2]
[359841878,1746367667754,-245.76967454,0.00019524,2]
[359841879,1746367667776,-123.66940879,0.00019524,2]
[359841880,1746367672374,-176.33059121,0.00019524,2]
[359841881,1746367672396,-23.66940879,0.00019524,2]
[359841882,1746367679547,178.4,0.00018681,2]
[359841883,1746367681598,-290.50940879,0.00019524,2]
[359841884,1746367682120,-9.49059121,0.00019524,2]
[359841885,1746367682144,-250.0,0.00019524,2]
[359841886,1746367682170,-31.01881758,0.00019525,2]
[359841887,1746367745172,290.985161,0.00019427,2]
[359841888,1746367751725,500.0,0.00027945,30]
[359841889,1746367751968,500.0,0.00029315,35]
[359841890,1746367765049,1430.87,0.00016813,2]
[359841896,1746367765461,1430.87,0.00019077,2]
[359841898,1746367832195,-300.0,0.00019524,2]
[359841899,1746367832206,-150.0,0.00019525,2]
[359841900,1746367832217,-546.18703999,0.00019525,2]
[359841901,1746367832227,-1068.94635998,0.00019525,2]
[359841902,1746367832260,-270.33973497,0.00019525,2]
[359841903,1746367832320,-20.51213392,0.00019525,2]
[359841904,1746367832330,-155.05982461,0.00019525,2]
[359841905,1746367832339,-1200.0,0.00019525,2]
[359841906,1746367832349,-300.0,0.00019525,2]
[359841907,1746367832358,-250.0,0.00019526,2]
[359841908,1746367832368,-200.0,0.00019526,2]
[359841909,1746367832377,-801.80885541,0.00019526,2]
[359841910,1746367832389,-918.67214459,0.00019526,2]
[359841911,1746367832399,-500.0,0.00019526,2]
[359841912,1746367832408,-500.0,0.00019526,2]
[359841913,1746367832419,-375.06229879,0.00019526,2]
[359841914,1746367832429,-1628.25,0.00019526,2]
[359841915,1746367832439,-200.0,0.00019552,2]
[359841916,1746367832449,-1521.7571,0.00019556,2]
[359841917,1746367832459,-1620.7313,0.00019608,2]
[359841918,1746367832468,-331.7223,0.00019608,2]
[359841919,1746367832478,-207.4,0.00019614,2]
[359841920,1746367832487,-152.4,0.00019616,3]
[359841921,1746367832498,-457.23,0.00019616,3]
[359841922,1746367832507,-500.0,0.00019625,2]
[359841923,1746367832516,-500.0,0.00019625,2]
[359841924,1746367832526,-500.0,0.00019625,2]
[359841925,1746367832535,-500.0,0.00019625,2]
[359841926,1746367832545,-500.0,0.00019625,2]
[359841927,1746367832554,-500.0,0.00019625,2]
[359841928,1746367832564,-500.0,0.00019625,2]